bitfinex/quotes_SOLUSD_20260305
["timestamp","ask_amount","ask_price","bid_price","bid_amount"]
[1772701159997,0.27568356,90.639,90.62,11.03509159]
[1772701160201,0.27568356,90.639,90.621,0.47639416]
[1772701161502,0.27568316,90.659,90.621,0.47639416]
[1772701162202,0.27568311,90.657,90.623,0.47639416]
[1772701163498,0.27568306,90.649,90.623,0.47639416]
[1772701164604,11.03168299,90.648,90.625,0.47639416]
[1772701165301,11.30736596,90.648,90.625,0.47639416]
[1772701165494,0.27568297,90.652,90.625,0.47639416]
[1772701165693,0.27568297,90.658,90.625,0.47639416]
[1772701166495,0.27568297,90.658,90.626,11.034361]
[1772701166701,0.27568292,90.662,90.627,0.47639416]
[1772701167287,0.27568283,90.659,90.627,0.47639416]
[1772701179508,0.27568233,90.658,90.629,0.49812184]
[1772701180206,0.27568229,90.649,90.628,11.03411749]
[1772701180441,0.27568229,90.639,90.623,11.03460646]
[1772701181906,0.27568229,90.639,90.619,11.03521336]
[1772701182292,0.27568229,90.639,90.62,0.49812184]
[1772701182615,0.27568222,90.645,90.62,0.49812184]
[1772701183812,0.27568222,90.645,90.621,11.03496981]
[1772701184008,0.27568222,90.645,90.622,0.49812184]
[1772701184195,0.27568214,90.639,90.622,0.49812184]
[1772701184718,0.27568214,90.644,90.622,0.49812184]
[1772701186314,0.27568214,90.644,90.624,0.49812184]
[1772701188493,11.03161998,90.649,90.625,11.03448275]
[1772701188699,0.27568196,90.648,90.626,0.49812184]
[1772701190394,0.27568196,90.648,90.628,0.48782953]
[1772701195098,0.27568196,90.648,90.63,0.48782953]
[1772701196614,0.27568196,90.648,90.632,0.48782953]
[1772701198298,0.27568164,90.669,90.634,0.48782953]
[1772701198614,0.27568164,90.664,90.634,0.48782953]
[1772701200424,0.27568158,90.674,90.636,0.48782953]
[1772701200625,11.02839812,90.675,90.636,0.48782953]
[1772701200626,0.27568158,90.669,90.636,0.48782953]
[1772701200912,0.27568158,90.659,90.636,0.48782953]
[1772701201305,38.59939343,90.675,90.631,0.48782953]
[1772701201306,0.27568155,90.649,90.631,0.48782953]
[1772701201617,0.27568155,90.649,90.633,0.48782953]
[1772701201799,0.27568155,90.659,90.633,0.48782953]
[1772701202810,0.27568152,90.657,90.634,11.52121655]
[1772701203009,0.27568149,90.649,90.621,0.48782953]
[1772701206002,0.2756814,90.658,90.623,0.48782953]
[1772701206221,0.2756814,90.669,90.623,0.48782953]
[1772701206422,0.2756814,90.682,90.624,0.48782953]
[1772701207524,0.27568137,90.679,90.624,0.48782953]
[1772701209542,4.20505129,90.68,90.622,93.79620842]
[1772701209543,0.27568132,90.677,90.627,0.48782953]
[1772701209716,0.27568132,90.669,90.627,0.48782953]
[1772701209911,0.27568132,90.659,90.627,0.48782953]
[1772701210710,4.20505129,90.65,90.627,0.48782953]
[1772701211525,0.27568126,90.649,90.629,0.48782953]
[1772701211916,0.27568126,90.639,90.606,0.48782953]
[1772701213226,0.27568121,90.637,90.608,0.48782953]
[1772701213414,0.27568121,90.629,90.607,11.03667487]
[1772701214513,0.27568121,90.629,90.606,0.48782953]
[1772701214713,0.27568121,90.629,90.608,0.48782953]
[1772701215324,0.27568116,90.627,90.608,0.48782953]
[1772701216036,0.27568114,90.627,90.608,0.48782953]
[1772701217341,11.03411749,90.628,90.597,0.48782953]
[1772701217342,4.20505129,90.62,90.597,0.48782953]
[1772701217516,0.27568111,90.625,90.597,0.48782953]
[1772701217911,4.20505129,90.7,90.597,0.48782953]
[1772701217912,0.27568109,90.663,90.597,0.48782953]
[1772701218111,0.27568109,90.669,90.597,0.48782953]
[1772701219118,0.27568109,90.669,90.601,0.45290212]
[1772701219312,0.27568104,90.667,90.603,0.28432314]
[1772701219526,0.27568104,90.667,90.604,0.45290212]
[1772701220126,0.27568104,90.667,90.608,0.45290212]
[1772701221331,0.27568104,90.667,90.529,49.64]
[1772701221332,0.27568099,90.665,90.614,0.45290212]
[1772701221919,0.27568099,90.659,90.614,0.45290212]
[1772701222720,38.60322501,90.666,90.604,0.45290212]
[1772701222721,0.27568097,90.639,90.604,0.45290212]
[1772701223415,11.0325279,90.642,90.606,0.45290212]
[1772701224038,0.27568092,90.651,90.606,0.45290212]
[1772701224228,11.02912792,90.669,90.607,0.45290212]
[1772701224418,0.27568092,90.673,90.61,0.45290212]
[1772701224743,11.02851975,90.674,90.61,0.45290212]
[1772701224936,11.02851975,90.674,90.613,0.45290212]
[1772701225326,11.30371416,90.678,90.617,0.28432314]
[1772701225516,0.2756809,90.677,90.618,0.45290212]
[1772701225715,0.2756809,90.669,90.618,0.45290212]
[1772701225922,4.20505129,90.66,90.621,0.45290212]
[1772701226339,0.27568088,90.659,90.621,0.45290212]
[1772701227151,0.27568085,90.657,90.623,0.45290212]
[1772701228333,11.02998894,90.662,90.623,0.45290212]
[1772701228839,0.27568081,90.661,90.623,0.45290212]
[1772701230843,0.27568077,90.659,90.624,11.03460451]
[1772701231149,0.27568077,90.659,90.625,0.47011283]
[1772701231345,11.02962025,90.665,90.625,0.47011283]
[1772701231649,11.305301,90.665,90.625,0.47011283]
[1772701231947,0.27568075,90.664,90.625,0.47011283]
[1772701235154,0.27568067,90.662,90.627,0.47011283]
[1772701236230,0.27568065,90.667,90.627,0.75443597]
[1772701236434,0.27568065,90.688,90.628,0.47011283]
[1772701236641,4.92477569,90.73,90.626,93.7920685]
[1772701236642,0.27568065,90.694,90.631,0.47011283]
[1772701237151,0.27568065,90.694,90.633,0.47011283]
[1772701237327,11.30188992,90.693,90.636,0.47011283]
[1772701237960,4.48090299,90.69,90.636,30.0]
[1772701238147,0.27568061,90.689,90.638,0.47011283]
[1772701238830,0.27568061,90.679,90.638,0.47011283]
[1772701240063,0.27568057,90.677,90.64,0.75443597]
[1772701240254,0.27568057,90.677,90.641,0.47011283]
[1772701240575,0.27568057,90.669,90.641,0.47011283]
[1772701240742,0.27568057,90.659,90.613,0.47011283]
[1772701241057,0.27568057,90.659,90.615,0.47011283]
[1772701241957,0.27568055,90.649,90.615,0.47011283]
[1772701242249,0.27568055,90.649,90.617,0.47011283]
[1772701242456,0.27568054,90.665,90.617,0.47011283]
[1772701242665,0.27568054,90.665,90.618,0.47011283]
[1772701243553,0.27568052,90.659,90.618,0.47011283]
[1772701244254,0.27568052,90.659,90.621,0.47011283]
[1772701244457,0.2756805,90.674,90.621,0.47011283]
[1772701244837,11.30428968,90.674,90.621,0.47011283]
[1772701245443,11.30428968,90.674,90.622,0.47011283]
[1772701245851,0.27568048,90.685,90.624,0.47011283]
[1772701246045,0.27568048,90.685,90.625,0.47011283]
[1772701246560,0.27568048,90.685,90.628,0.47011283]
[1772701246739,0.27568048,90.685,90.632,0.47011283]
[1772701246945,11.02741585,90.684,90.632,0.47011283]
[1772701247140,11.02741585,90.684,90.635,0.47011283]
[1772701247662,11.02741585,90.684,90.638,0.47011283]
[1772701248041,0.27568048,90.685,90.638,0.47011283]
[1772701248249,7.45503324,90.715,90.638,0.47011283]
[1772701248250,11.30191076,90.693,90.638,0.47011283]
[1772701248558,0.27568043,90.692,90.638,0.47011283]
[1772701251550,27.56115995,90.708,90.637,0.28432314]
[1772701251551,0.27568036,90.689,90.641,0.46177147]
[1772701254367,0.27568032,90.687,90.644,0.46177147]
[1772701254961,0.27568032,90.687,90.643,0.28432314]
[1772701254962,7.45503324,90.715,90.647,0.46177147]
[1772701255145,0.3756803,90.73,90.663,0.46177147]
[1772701255146,0.2756803,90.727,90.663,0.46177147]
[1772701255345,0.2756803,90.727,90.666,0.46177147]
[1772701255758,0.2756803,90.721,90.666,0.46177147]
[1772701255954,0.37568029,90.72,90.666,0.46177147]
[1772701256256,0.1,90.72,90.671,0.46177147]
[1772701256458,0.1,90.72,90.674,0.46177147]
[1772701257160,0.1,90.72,90.676,0.46177147]
[1772701257546,0.1,90.72,90.679,0.46177147]
[1772701258252,0.1,90.72,90.684,0.46177147]
[1772701258450,0.27568026,90.719,90.686,0.46177147]
[1772701258657,0.27568026,90.719,90.687,0.46177147]
[1772701259043,0.1,90.72,90.687,0.46177147]
[1772701259259,0.1,90.72,90.689,0.46177147]
[1772701260162,0.27568023,90.719,90.689,0.46177147]
[1772701260344,0.27568023,90.729,90.687,0.46177147]
[1772701260552,0.27568023,90.728,90.69,0.46177147]
[1772701261652,0.27568021,90.719,90.677,0.46177147]
[1772701261852,4.20522238,90.71,90.677,0.46177147]
[1772701262060,0.27568021,90.709,90.677,0.46177147]
[1772701262258,0.27568021,90.709,90.682,0.46177147]
[1772701262464,0.2756802,90.728,90.682,0.46177147]
[1772701262646,0.2756802,90.726,90.684,0.46177147]
[1772701264356,0.27568017,90.719,90.684,0.46177147]
[1772701265174,0.27568016,90.729,90.686,0.46177147]
[1772701265974,0.27568016,90.729,90.687,0.46177147]
[1772701266277,0.1,90.73,90.687,0.46177147]
[1772701267179,11.02122688,90.734,90.688,38.87818339]
[1772701267350,0.27568013,90.75,90.693,0.46177147]
[1772701268371,0.27568011,90.739,90.695,0.46177147]
[1772701269287,0.27568011,90.739,90.697,0.46177147]
[1772701269585,11.02074103,90.738,90.697,0.46177147]
[1772701269887,0.2756801,90.737,90.697,0.46177147]
[1772701271183,0.2756801,90.737,90.7,0.46177147]
[1772701271380,0.27568008,90.744,90.7,0.46177147]
[1772701271555,0.27568008,90.758,90.7,0.46177147]
[1772701271757,0.1,90.76,90.703,0.46177147]
[1772701271956,0.1,90.76,90.702,0.28432314]
[1772701271957,0.27568008,90.786,90.712,4.15560549]
[1772701272161,11.01511913,90.785,90.714,0.46177147]
[1772701272373,0.27568008,90.786,90.717,0.28432314]
[1772701272564,0.27568008,90.786,90.72,0.46177147]
[1772701272755,0.27568008,90.786,90.726,0.46177147]
[1772701273157,0.27568008,90.786,90.731,3.69383402]
[1772701273454,11.29068638,90.786,90.732,0.46177147]
[1772701273659,0.27568008,90.786,90.734,0.46177147]
[1772701273862,0.27568008,90.786,90.736,0.46177147]
[1772701274175,11.29062523,90.786,90.736,0.46177147]
[1772701274373,0.27568008,90.786,90.738,0.46177147]
[1772701274786,0.27568008,90.786,90.74,0.46177147]
[1772701275281,0.27568003,90.784,90.745,0.46177147]
[1772701275455,0.27568003,90.784,90.747,0.46177147]
[1772701275854,0.27568003,90.784,90.749,0.46177147]
[1772701276959,0.27568003,90.784,90.748,11.36333913]
[1772701277357,0.27568,90.782,90.749,11.01940517]
[1772701279488,0.27567997,90.78,90.749,11.01940517]
[1772701280158,0.27567997,90.78,90.75,0.47482492]
[1772701281474,0.27567994,90.788,90.753,0.47482492]
[1772701282188,0.27567993,90.805,90.778,0.47482492]
[1772701282382,27.53012662,90.81,90.778,0.47482492]
[1772701282383,0.27567993,90.803,90.778,0.47482492]
[1772701282561,0.27567993,90.803,90.761,0.47482492]
[1772701283676,0.27567992,90.801,90.757,11.01832164]
[1772701283877,0.27567992,90.799,90.749,0.47482492]
[1772701284464,0.27567992,90.799,90.75,0.47482492]
[1772701286792,0.27567989,90.797,90.752,0.47482492]
[1772701289492,0.27567985,90.795,90.754,0.49417723]
[1772701292399,0.27567982,90.793,90.756,0.49417723]
[1772701294600,0.2756798,90.791,90.758,0.49417723]
[1772701296900,11.29010868,90.79,90.76,0.49417723]
[1772701297200,0.27567977,90.789,90.76,0.49417723]
[1772701298797,0.27567977,90.789,90.751,0.49417723]
[1772701298981,4.19221145,90.78,90.748,11.36333913]
[1772701299176,0.27567975,90.779,90.691,4.82477569]
[1772701299390,0.27567975,90.779,90.712,0.28432314]
[1772701299682,0.27567975,90.779,90.715,0.28432314]
[1772701300084,0.27567975,90.779,90.714,3.69383402]
[1772701300284,0.27567975,90.779,90.721,3.69383402]
[1772701300693,0.27567975,90.779,90.722,0.28432314]
[1772701301110,0.46627486,90.787,90.724,0.28432314]
[1772701301314,0.46627486,90.787,90.729,0.49417723]
[1772701301608,0.46627486,90.787,90.73,0.49417723]
[1772701302302,0.46627486,90.787,90.734,0.49417723]
[1772701302685,0.46627486,90.785,90.737,0.49417723]
[1772701303409,0.46627486,90.785,90.74,0.49417723]
[1772701304110,11.01515685,90.784,90.741,11.02037667]
[1772701304408,0.46627486,90.783,90.742,0.49417723]
[1772701306506,0.46627486,90.781,90.744,0.49417723]
[1772701307294,0.46627486,90.781,90.743,11.02013378]
[1772701307791,0.46627486,90.781,90.744,0.49417723]
[1772701308516,0.46627486,90.779,90.746,0.49417723]
[1772701308710,0.48268781,90.809,90.747,0.46904618]
[1772701309213,0.48268781,90.802,90.747,0.46904618]
[1772701310513,0.48268781,90.8,90.749,0.28432314]
[1772701310717,0.48268781,90.8,90.75,0.46904618]
[1772701311906,0.48268781,90.798,90.752,0.46904618]
[1772701314018,0.48268781,90.796,90.754,0.46904618]
[1772701314912,0.48268781,90.796,90.753,11.01891948]
[1772701315396,0.48268781,90.794,90.753,0.46904618]
[1772701316603,0.48268781,90.792,90.753,0.46904618]
[1772701316811,0.48268781,90.792,90.755,0.46904618]
[1772701318914,0.48268781,90.79,90.757,0.46904618]
[1772701319714,0.48268781,90.79,90.752,11.0190409]
[1772701319905,0.48268781,90.79,90.753,0.46904618]
[1772701320909,0.48268781,90.79,90.755,0.46904618]
[1772701321109,0.48268781,90.788,90.755,0.46904618]
[1772701321614,0.48268781,90.788,90.754,11.01879806]
[1772701322027,0.48268781,90.788,90.75,0.46904618]
[1772701322601,0.48268781,90.788,90.751,0.46904618]
[1772701323007,0.48268781,90.794,90.753,0.46904618]
[1772701323722,0.48268781,90.818,90.754,0.46904618]
[1772701325923,0.48268781,90.816,90.757,0.46904618]
[1772701327925,0.48268781,90.816,90.743,3.69383402]
[1772701327926,0.48268781,90.814,90.76,0.46904618]
[1772701328105,11.01025691,90.825,90.763,0.46904618]
[1772701328306,0.48268781,90.825,90.763,0.46904618]
[1772701328624,0.1,90.83,90.763,0.46904618]
[1772701328830,11.10968135,90.83,90.763,0.46904618]
[1772701329529,11.10968135,90.83,90.771,0.46904618]
[1772701330553,0.1,90.83,90.779,0.46904618]
[1772701330733,11.10964338,90.83,90.779,0.46904618]
[1772701331031,0.48268781,90.821,90.779,0.46904618]
[1772701331210,0.1,90.83,90.779,0.46904618]
[1772701331410,0.1,90.83,90.781,0.46904618]
[1772701332734,0.48268781,90.857,90.786,0.46904618]
[1772701333037,0.48268781,90.856,90.786,0.46904618]
[1772701333610,0.48268781,90.856,90.787,0.46904618]
[1772701333935,0.64792314,90.858,90.793,0.46904618]
[1772701334834,0.64792314,90.858,90.799,0.46904618]
[1772701335605,11.00630661,90.857,90.799,0.46904618]
[1772701336042,11.00630661,90.857,90.803,0.28432314]
[1772701336212,11.00630661,90.857,90.804,0.46904618]
[1772701336728,0.48268781,90.856,90.804,0.46904618]
[1772701336928,0.48268781,90.854,90.807,0.46904618]
[1772701337238,11.00654889,90.855,90.807,0.46904618]
[1772701338130,11.00654889,90.855,90.809,0.46904618]
[1772701338328,0.48268781,90.849,90.807,30.0]
[1772701338635,0.48268781,90.849,90.808,0.46904618]
[1772701339333,0.48088222,90.847,90.81,0.46120352]
[1772701340037,11.00739697,90.848,90.81,0.46120352]
[1772701340225,0.48088222,90.854,90.81,0.46120352]
[1772701340226,0.48088222,90.853,90.811,0.46120352]
[1772701342436,0.48088222,90.851,90.813,0.46120352]
[1772701342744,4.19221145,90.88,90.818,0.46120352]
[1772701342918,4.19221145,90.88,90.819,0.46120352]
[1772701343616,4.19221145,90.89,90.819,0.46120352]
[1772701344030,4.19221145,90.9,90.819,0.46120352]
[1772701344423,11.00122113,90.899,90.823,0.46120352]
[1772701344629,0.28897443,90.889,90.824,0.46120352]
[1772701345524,0.28897443,90.889,90.828,0.28432314]
[1772701345729,0.28897443,90.889,90.829,0.46120352]
[1772701346540,0.28897443,90.889,90.831,0.46120352]
[1772701347324,0.28897441,90.887,90.831,0.46120352]
[1772701347640,0.28897441,90.887,90.832,0.48743147]
[1772701347845,0.28897441,90.887,90.833,0.48743147]
[1772701348932,0.28897441,90.885,90.835,0.48743147]
[1772701351142,31.69014565,90.89,90.837,0.48743147]
[1772701351143,0.28897439,90.883,90.837,0.48743147]
[1772701352042,11.00327897,90.882,90.838,11.00860873]
[1772701352249,0.28897439,90.881,90.839,0.48743147]
[1772701354151,0.28897438,90.879,90.841,0.48743147]
[1772701354648,0.28897438,90.898,90.841,0.48743147]
[1772701357631,0.28897436,90.896,90.843,0.48743147]
[1772701357832,0.28897436,90.896,90.844,0.48743147]
[1772701359833,0.28897436,90.896,90.845,38.52716164]
[1772701360035,0.28897435,90.894,90.846,0.48743147]
[1772701362650,0.28897434,90.892,90.848,0.48743147]
[1772701362852,0.28897434,90.892,90.847,38.52631346]
[1772701363067,0.28897434,90.889,90.847,38.52631346]
[1772701363240,0.28897434,90.889,90.847,39.01374493]
[1772701363439,0.28897434,90.889,90.848,0.48743147]
[1772701364844,0.28897433,90.887,90.85,0.48743147]
[1772701366737,49.52,90.911,90.84,0.48743147]
[1772701366738,0.28897432,90.885,90.84,0.48743147]
[1772701368079,0.28897432,90.883,90.842,0.48743147]
[1772701368947,0.28897431,90.888,90.842,0.48743147]
[1772701370573,0.28897431,90.886,90.844,0.47842699]
[1772701371541,0.2889743,90.884,90.846,0.47842699]
[1772701373776,0.28897429,90.882,90.847,11.00751813]
[1772701374269,0.28897429,90.882,90.847,11.48594512]
[1772701375071,0.28897429,90.882,90.848,0.47842699]
[1772701375654,38.51698599,90.869,90.831,0.5000002]
[1772701375869,38.51698599,90.869,90.832,11.00933591]
[1772701376770,38.51698599,90.869,90.828,11.00978181]
[1772701377381,38.51698599,90.869,90.825,0.5000002]
[1772701377382,4.1841907,90.86,90.825,0.5000002]
[1772701377869,11.00606434,90.859,90.825,11.51010806]
[1772701378066,38.52122519,90.859,90.825,11.51010806]
[1772701379372,38.52122519,90.859,90.826,0.5000002]
[1772701380171,49.52,90.911,90.808,0.5000002]
[1772701380355,4.1841907,90.9,90.81,0.5000002]
[1772701381251,4.1841907,90.9,90.815,0.5000002]
[1772701381252,38.50427396,90.899,90.815,0.5000002]
[1772701382375,38.50427396,90.899,90.821,0.78432334]
[1772701382549,49.52,90.911,90.826,0.5000002]
[1772701382550,11.000011,90.909,90.826,0.5000002]
[1772701382753,38.5000385,90.909,90.829,0.5000002]
[1772701383471,38.5000385,90.909,90.836,0.5000002]
[1772701383856,49.52,90.911,90.836,0.5000002]
[1772701384177,49.52,90.911,90.846,0.5000002]
[1772701385262,49.52,90.911,90.848,0.5000002]
[1772701385456,49.52,90.911,90.851,0.5000002]
[1772701385656,10.99989,90.91,90.851,0.5000002]
[1772701386052,10.99989,90.91,90.853,0.5000002]
[1772701386257,49.52,90.911,90.853,0.5000002]
[1772701386477,10.99989,90.91,90.855,0.5000002]
[1772701386776,15.1840807,90.91,90.855,0.5000002]
[1772701387870,15.1840807,90.91,90.857,0.5000002]
[1772701388471,10.99989,90.91,90.857,0.5000002]
[1772701388674,15.1840807,90.91,90.857,0.5000002]
[1772701388866,10.99989,90.91,90.857,0.5000002]
[1772701389583,49.52,90.911,90.858,0.5000002]
[1772701390176,49.52,90.911,90.861,0.5000002]
[1772701390684,10.99654893,90.938,90.865,0.5000002]
[1772701390890,38.48780671,90.938,90.865,0.5000002]
[1772701391063,10.99654893,90.938,90.865,0.5000002]
[1772701391382,10.99654893,90.938,90.867,0.5000002]
[1772701391578,10.9959883,90.943,90.87,0.5000002]
[1772701391775,10.9964133,90.939,90.87,0.5000002]
[1772701392378,4.1841907,90.95,90.872,0.5000002]
[1772701393175,10.99396431,90.959,90.876,0.5000002]
[1772701393485,10.99396431,90.959,90.879,0.5000002]
[1772701393685,10.99396431,90.959,90.882,0.5000002]
[1772701393981,10.99396431,90.959,90.885,0.5000002]
[1772701394584,38.47887509,90.959,90.887,0.5000002]
[1772701394785,4.1841907,90.94,90.887,0.5000002]
[1772701394990,4.1841907,90.92,90.887,0.5000002]
[1772701395186,4.1841907,90.95,90.843,0.5000002]
[1772701395187,4.1841907,90.91,90.843,0.5000002]
[1772701395483,4.1841907,90.91,90.857,0.5000002]
[1772701396075,4.1841907,90.92,90.857,0.5000002]
[1772701396481,38.49580395,90.919,90.861,0.5000002]
[1772701396875,38.49580395,90.919,90.862,0.5000002]
[1772701397491,38.49580395,90.919,90.864,0.5000002]
[1772701397787,4.1841907,90.91,90.864,0.5000002]
[1772701398171,38.49580395,90.919,90.864,0.5000002]
[1772701398780,4.1841907,90.91,90.864,0.5000002]
[1772701398983,38.49580395,90.919,90.864,0.5000002]
[1772701399598,54.98101877,90.941,90.866,0.5000002]
[1772701399775,4.1841907,90.92,90.866,0.5000002]
[1772701400599,4.1841907,90.91,90.866,0.5000002]
[1772701401291,3.69383402,90.938,90.866,0.5000002]
[1772701401492,4.1841907,90.91,90.866,0.5000002]
[1772701401792,4.1841907,90.91,90.864,38.5189906]
[1772701401793,4.1841907,90.9,90.864,11.00534384]
[1772701401986,38.5000385,90.909,90.865,0.5000002]
[1772701402391,4.1841907,90.9,90.865,0.5000002]
[1772701402583,4.1841907,90.9,90.856,0.5000002]
[1772701402784,4.1841907,90.9,90.857,11.00630661]
[1772701402980,4.1841907,90.9,90.858,0.5000002]
[1772701403879,38.50427396,90.899,90.859,11.00606434]
[1772701404079,38.50427396,90.899,90.86,0.5000002]
[1772701406107,54.99248761,90.922,90.862,0.5000002]
[1772701406280,4.1841907,90.91,90.862,0.5000002]
[1772701407504,11.000011,90.909,90.865,0.5000002]
[1772701409198,10.99880113,90.919,90.865,0.5000002]
[1772701409699,27.49476864,90.927,90.868,0.5000002]
[1772701410495,10.99759152,90.929,90.868,0.5000002]
[1772701411601,10.99638219,90.939,90.871,0.5000002]
[1772701412686,10.99638219,90.939,90.874,0.5000002]
[1772701413389,38.48733766,90.939,90.874,0.5000002]
[1772701413799,38.48733766,90.939,90.878,0.5000002]
[1772701414907,38.48733766,90.939,90.88,0.5000002]
[1772701416195,4.18015254,90.94,90.883,0.5000002]
[1772701418514,38.48733766,90.939,90.885,0.5000002]
[1772701420115,4.18015254,90.93,90.887,0.5000002]
[1772701420413,4.18015254,90.91,90.881,0.5000002]
[1772701420909,4.18015254,90.92,90.881,0.5000002]
[1772701421410,4.18015254,90.94,90.882,0.5000002]
[1772701422709,4.18015254,90.94,90.867,55.02505554]
[1772701422710,10.99638219,90.939,90.885,0.5000002]
[1772701424213,10.99638219,90.939,90.884,0.28432314]
[1772701424214,10.99299746,90.967,90.888,0.5000002]
[1772701424392,10.99299746,90.967,90.89,0.5000002]
[1772701424393,38.47549111,90.967,90.89,0.5000002]
[1772701424593,38.47549111,90.967,90.894,0.5000002]
[1772701425312,0.1,91.02,90.897,3.69383402]
[1772701425625,4.18015254,90.99,90.905,0.5000002]
[1772701425806,27.47230369,91.001,90.905,0.5000002]
[1772701426002,0.1,91.02,90.914,0.5000002]
[1772701426203,4.28015254,91.02,90.935,0.5000002]
[1772701426395,4.28015254,91.02,90.944,3.69383402]
[1772701426602,5.70023173,91.059,90.944,3.69383402]
[1772701426603,0.50000006,91.039,90.944,30.0]
[1772701426915,0.50000006,91.039,90.953,4.96693726]
[1772701427107,0.50000006,91.039,90.961,4.82477569]
[1772701427314,0.50000006,91.039,90.966,0.28432314]
[1772701427620,0.50000006,91.039,90.974,0.14216157]
[1772701427917,0.50000006,91.039,90.97,0.28432314]
[1772701428144,0.50000006,91.039,90.972,0.14216157]
[1772701428322,0.50000006,91.039,90.974,0.14216157]
[1772701428505,0.50000006,91.029,90.974,0.14216157]
[1772701428701,0.50000006,91.027,90.974,30.14216157]
[1772701430399,0.50000006,91.019,90.974,30.0]
[1772701430599,0.50000006,91.007,90.969,10.99275577]
[1772701430818,0.50000006,90.999,90.968,0.97416838]
[1772701431407,0.50000006,91.008,90.969,10.99275577]
[1772701431613,0.50000006,91.008,90.969,38.4746452]
[1772701431908,0.50000006,91.008,90.97,0.64216157]
[1772701432701,0.50000006,91.008,90.972,0.28432314]
[1772701433210,0.50000006,91.008,90.972,0.14216157]
[1772701435816,0.50000006,91.008,90.973,10.99227243]
[1772701436220,0.50000006,91.006,90.968,0.97416838]
[1772701436423,0.50000006,91.006,90.969,10.99275577]
[1772701436717,0.50000006,91.006,90.968,0.97416838]
[1772701437103,38.4585801,91.007,90.968,0.97416838]
[1772701437104,0.50000006,90.999,90.968,0.97416838]
[1772701437305,0.50000006,90.999,90.968,0.47416828]
[1772701437512,0.49537382,91.011,90.97,0.49221136]
[1772701437816,0.49537382,91.026,90.973,0.49221136]
[1772701439426,0.49537382,91.026,90.976,0.49221136]
[1772701440315,0.49537382,91.024,90.977,10.99178913]
[1772701440629,0.49537382,91.024,90.979,0.49221136]
[1772701442433,0.49537382,91.019,90.979,30.0]
[1772701443425,0.49537382,91.019,90.975,10.99203077]
[1772701444532,0.49537382,91.017,90.976,0.49221136]
[1772701446009,0.49537382,91.017,90.976,0.38118136]
[1772701446611,10.98535202,91.031,90.979,0.49221136]
[1772701448021,10.98535202,91.031,90.98,0.7765345]
[1772701448227,27.46196581,91.035,90.983,0.49221136]
[1772701448622,0.49537382,91.034,90.983,0.49221136]
[1772701451446,0.49537382,91.032,90.985,0.49221136]
[1772701451818,0.49537382,91.032,90.986,0.49221136]
[1772701452034,10.98432346,91.039,90.986,0.49221136]
[1772701452233,0.64793498,91.04,90.986,0.49221136]
[1772701452425,0.64793498,91.04,90.986,30.0]
[1772701452738,0.49537382,91.054,90.991,0.49221136]
[1772701453124,0.49537382,91.049,90.991,0.49221136]
[1772701453530,0.49537382,91.047,90.993,0.49221136]
[1772701454545,0.49537382,91.047,90.994,0.49221136]
[1772701455042,38.44126174,91.048,90.996,0.49221136]
[1772701455043,0.49537382,91.045,90.996,0.49221136]
[1772701456343,0.49537382,91.039,90.982,0.49221136]
[1772701456646,0.49537382,91.039,90.983,0.49221136]
[1772701457028,4.18015254,91.04,90.956,3.69383402]
[1772701457029,0.49537382,91.029,90.985,0.49221136]
[1772701458346,0.49537382,91.028,90.971,0.49221136]
[1772701458720,0.49537382,91.019,90.971,0.49221136]
[1772701459143,4.18015254,91.02,90.972,10.99239326]
[1772701459144,0.45647159,91.017,90.972,10.99239326]
[1772701459332,0.45647159,91.017,90.972,11.45584453]
[1772701459532,0.45647159,91.017,90.973,0.46345127]
[1772701461143,0.45647159,91.015,90.975,0.46345127]
[1772701463554,27.46412711,91.028,90.974,38.4725306]
[1772701463555,0.45647159,91.013,90.977,0.46345127]
[1772701465154,0.45647159,91.013,90.97,0.46345127]
[1772701465347,0.45647159,91.013,90.97,30.46345127]
[1772701465540,0.45647159,91.011,90.971,10.99251409]
[1772701465852,0.45647159,90.989,90.94,0.46345127]
[1772701466053,0.45647159,90.989,90.946,0.46345127]
[1772701466538,0.45647159,90.989,90.952,10.99471536]
[1772701466745,0.45647159,90.989,90.946,0.46345127]
[1772701467729,0.4893882,90.987,90.958,10.99397468]
[1772701468854,0.4893882,90.979,90.939,0.45829529]
[1772701469953,0.4893882,90.977,90.94,10.99626127]
[1772701471240,0.4893882,91.01,90.94,0.45829529]
[1772701471440,0.4893882,90.999,90.94,0.45829529]
[1772701471647,0.4893882,90.989,90.94,0.45829529]
[1772701472637,54.93841403,91.011,90.933,0.28432314]
[1772701472638,0.4893882,90.979,90.934,0.45829529]
[1772701474637,0.4893882,90.987,90.937,0.45829529]
[1772701474936,10.99046028,90.988,90.937,0.45829529]
[1772701475155,0.4893882,90.987,90.937,0.45829529]
[1772701475543,0.4893882,90.979,90.93,10.99741048]
[1772701475856,4.17566797,90.98,90.93,10.99741048]
[1772701475857,0.4893882,90.969,90.93,11.45570577]
[1772701476048,0.4893882,90.969,90.931,0.45829529]
[1772701476250,0.4893882,90.979,90.932,0.45829529]
[1772701476956,0.4893882,90.999,90.935,0.45829529]